bitfinex-derivatives/quotes_ETHF0:USTF0_20250531
["timestamp","ask_amount","ask_price","bid_price","bid_amount"]
[1748709953327,0.2955,2540.4,2540.3,4.38909244]
[1748709953726,1.08237,2540.4,2540.3,4.38909244]
[1748709955627,1.08237,2540.4,2540.3,3.60218244]
[1748709955923,1.08237,2540.4,2540.3,1.2608]
[1748709956320,1.08237,2540.4,2540.3,2.04771]
[1748709956727,1.08237,2540.4,2540.3,1.2608]
[1748709956922,0.78691,2540.3,2540.2,0.6256]
[1748709957224,0.88591,2540.3,2540.2,0.6256]
[1748709957819,0.88591,2540.3,2540.2,1.41254]
[1748709958326,0.88591,2540.3,2540.2,0.6256]
[1748709958825,0.88591,2540.3,2540.2,1.41254]
[1748709959025,0.88591,2540.3,2540.2,3.75762135]
[1748709960226,0.88591,2540.3,2540.2,2.97068135]
[1748709960527,0.88591,2540.3,2540.2,2.34508135]
[1748709961315,1.08251,2540.3,2540.2,2.34508135]
[1748709965127,1.08251,2540.3,2540.2,2.41663474]
[1748709965627,1.08251,2540.3,2540.2,0.07155339]
[1748709966631,6.08251,2540.3,2540.2,0.07155339]
[1748709967129,0.78703,2539.9,2539.8,1.55783313]
[1748709967428,22.77603,2539.9,2539.8,1.55783313]
[1748709968221,24.21383,2539.9,2539.8,1.55783313]
[1748709968527,32.42163,2539.9,2539.8,0.76303313]
[1748709968931,27.42163,2539.9,2539.8,0.76303313]
[1748709969132,32.42163,2539.9,2539.8,0.76303313]
[1748709969431,27.42163,2539.9,2539.8,0.76303313]
[1748709969827,0.78709,2539.7,2539.6,0.0059054]
[1748709970432,22.77709,2539.7,2539.6,0.0059054]
[1748709971130,22.77909,2539.7,2539.6,0.0059054]
[1748709971733,22.77909,2539.7,2539.6,0.6288054]
[1748709972130,22.77909,2539.7,2539.6,0.0059054]
[1748709973232,23.42919,2539.7,2539.6,0.0059054]
[1748709974731,23.52819,2539.7,2539.6,0.0059054]
[1748709977440,5.42819,2539.7,2539.6,0.0059054]
[1748709977647,4.77909,2539.7,2539.6,0.0059054]
[1748709977941,22.88009,2539.7,2539.6,0.0059054]
[1748709979246,22.88009,2539.7,2539.6,0.07745879]
[1748709986151,0.7874,2538.7,2538.6,3.10563542]
[1748709986347,0.78749,2538.4,2538.1,5.40627018]
[1748709987054,0.78749,2538.4,2538.1,5.41217558]
[1748709988043,3.99529,2538.4,2538.1,5.41217558]
[1748709988748,0.78756,2538.2,2538.1,0.0059054]
[1748709988949,4.67956,2538.2,2538.1,0.0059054]
[1748709989345,22.84256,2538.2,2538.1,0.0059054]
[1748709989544,22.94156,2538.2,2538.1,0.0059054]
[1748709992756,0.88656,2538.2,2538.1,0.0059054]
[1748709993251,22.93656,2538.2,2538.1,0.0059054]
[1748709993848,0.88656,2538.2,2538.1,0.0059054]
[1748709994048,22.93456,2538.2,2538.1,0.0059054]
[1748709994550,22.93456,2538.2,2538.1,0.07745879]
[1748709994755,0.88656,2538.2,2538.1,0.07745879]
[1748709995048,22.93456,2538.2,2538.1,0.07745879]
[1748709997356,22.92956,2538.2,2538.1,0.07745879]
[1748709998255,22.92556,2538.2,2538.1,0.07745879]
[1748710000954,0.88656,2538.2,2538.1,0.07745879]
[1748710001159,22.91656,2538.2,2538.1,0.07745879]
[1748710001859,3.992,2538.2,2538.1,0.07745879]
[1748710002058,22.91456,2538.2,2538.1,3.28525879]
[1748710003260,0.88656,2538.2,2538.1,3.28525879]
[1748710003459,22.90956,2538.2,2538.1,0.07745879]
[1748710003863,24.23166,2538.2,2538.1,0.07745879]
[1748710005765,22.92856,2538.2,2538.1,0.07745879]
[1748710005962,0.88656,2538.2,2538.1,0.07745879]
[1748710006153,22.92856,2538.2,2538.1,0.07745879]
[1748710006357,22.93056,2538.2,2538.1,0.07745879]
[1748710006562,22.93056,2538.2,2538.1,0.74455879]
[1748710007063,22.93056,2538.2,2538.1,0.07745879]
[1748710007361,24.29576,2538.2,2538.1,0.07745879]
[1748710007552,24.49266,2538.2,2538.1,0.07745879]
[1748710010972,24.49166,2538.2,2538.1,0.07745879]
[1748710011364,2.44866,2538.2,2538.1,0.07745879]
[1748710011568,24.49066,2538.2,2538.1,0.07745879]
[1748710012071,6.34166,2538.2,2538.1,0.07745879]
[1748710012271,24.48766,2538.2,2538.1,0.07745879]
[1748710016373,0.2959,2538.2,2538.1,0.07745879]
[1748710016574,19.21546,2538.2,2538.1,1.99365879]
[1748710018871,0.2959,2538.2,2538.1,5.98904879]
[1748710019075,0.0059054,2538.6,2538.5,0.78746]
[1748710019372,0.0059054,2538.6,2538.5,3.99526]
[1748710019574,0.0059054,2538.6,2538.5,8.99526]
[1748710019765,3.1317845,2539.0,2538.5,8.8543]
[1748710019966,18.93032,2539.0,2538.9,0.78734]
[1748710020368,0.78731,2539.0,2538.9,2.14304]
[1748710020567,0.78729,2539.1,2539.0,0.78731]
[1748710020769,5.2194,2539.3,2539.0,0.78731]
[1748710020770,0.0059054,2539.3,2539.2,0.78725]
[1748710020968,0.0059054,2539.3,2539.2,3.99505]
[1748710021370,0.7931254,2539.3,2539.2,5.35075]
[1748710021571,0.7931254,2539.3,2539.2,4.5635]
[1748710022074,0.0059054,2539.3,2539.2,5.35075]
[1748710022473,0.7931254,2539.3,2539.2,5.35075]
[1748710022774,0.0059054,2539.3,2539.2,5.35075]
[1748710023078,0.0059054,2539.3,2539.2,10.35075]
[1748710023271,0.0059054,2539.3,2539.2,11.91325521]
[1748710024685,1.3546,2539.9,2539.7,0.78706]
[1748710024978,1.9672,2540.4,2539.8,0.78704]
[1748710024979,0.6735,2540.2,2539.8,0.78704]
[1748710025184,0.78703,2539.9,2539.8,1.3202]
[1748710025379,0.78703,2539.9,2539.8,4.528]
[1748710026885,0.78703,2539.9,2539.8,5.31506]
[1748710027381,0.787,2540.0,2539.8,4.528]
[1748710027589,0.787,2540.0,2539.9,0.78701]
[1748710027886,0.787,2540.0,2539.8,5.31504]
[1748710028086,0.787,2540.0,2539.9,0.78703]
[1748710028285,0.787,2540.0,2539.8,5.31504]
[1748710028482,0.78703,2539.9,2539.8,5.31504]
[1748710028783,0.78702,2540.0,2539.8,4.528]
[1748710029089,0.0059054,2540.1,2540.0,0.787]
[1748710029489,0.0059054,2540.1,2540.0,5.787]
[1748710029778,0.78672,2540.9,2540.1,1.96736]
[1748710029982,22.06,2541.0,2540.6,3.2078]
[1748710030175,2.14243,2540.9,2540.7,0.78675]
[1748710030379,1.3557,2540.9,2540.6,3.2078]
[1748710030581,0.78676,2540.8,2540.6,3.99458]
[1748710030776,1.3557,2540.9,2540.6,3.2078]
[1748710030985,0.78674,2540.9,2540.7,2.05096]
[1748710031185,0.78674,2540.9,2540.8,0.78675]
[1748710031386,0.78675,2540.9,2540.7,2.05096]
[1748710031890,0.78675,2540.8,2540.7,2.05096]
[1748710032385,0.78674,2540.9,2540.7,1.2642]
[1748710032586,2.11984,2540.9,2540.7,2.05098]
[1748710033287,2.11984,2540.9,2540.7,1.2642]
[1748710033687,2.11984,2540.9,2540.7,2.05097]
[1748710033887,2.11984,2540.9,2540.7,1.2642]
[1748710034192,0.78678,2540.7,2540.6,3.2078]
[1748710034886,0.78677,2540.8,2540.6,3.99461]
[1748710035092,1.2764,2540.7,2540.6,3.99461]
[1748710035788,2.06318,2540.7,2540.6,3.99461]
[1748710036387,1.2764,2540.7,2540.6,3.99461]
[1748710036889,2.06318,2540.7,2540.6,3.99461]
[1748710037083,1.2764,2540.7,2540.6,3.99461]
[1748710037487,2.06318,2540.7,2540.6,3.99461]
[1748710041795,0.6279,2540.8,2540.7,0.78678]
[1748710041997,1.41465,2540.8,2540.7,0.78678]
[1748710042186,2.76135,2540.8,2540.7,0.78678]
[1748710042385,1.9746,2540.8,2540.7,0.78678]
[1748710043392,2.76135,2540.8,2540.7,0.78678]
[1748710043694,1.9746,2540.8,2540.7,0.78678]
[1748710043988,2.76135,2540.8,2540.7,0.78678]
[1748710044294,1.9746,2540.8,2540.7,0.78678]
[1748710044598,4.68972,2540.9,2540.8,0.78675]
[1748710045093,5.98282,2540.9,2540.8,0.78675]
[1748710045488,0.78677,2540.8,2540.7,0.78675]
[1748710045697,2.07987,2540.8,2540.7,0.78675]
[1748710047895,0.78678,2540.7,2540.6,3.99459]
[1748710048101,2.79048,2540.7,2540.6,3.99459]
[1748710049499,2.0037,2540.7,2540.6,3.99459]
[1748710051194,4.68973,2540.9,2540.8,0.78675]
[1748710051403,3.903,2540.9,2540.8,0.78675]
[1748710051698,1.9664054,2541.0,2540.9,0.78672]
[1748710052000,0.0059054,2541.0,2540.9,3.99452]
[1748710052802,0.2023054,2541.0,2540.9,3.99452]
[1748710053595,0.2023054,2541.0,2540.9,8.99452]
[1748710053899,3.891,2541.5,2541.4,0.78657]
[1748710054094,4.67753,2541.5,2541.4,3.99437]
[1748710054299,5.99413,2541.5,2541.4,3.99437]
[1748710054995,5.99413,2541.5,2541.4,5.16275469]
[1748710055198,5.2076,2541.5,2541.4,5.16275469]
[1748710056493,5.2076,2541.5,2541.4,5.54838513]
[1748710056694,1.3166,2541.5,2541.4,5.54838513]
[1748710057003,3.891,2541.8,2541.7,0.78647]
[1748710057396,0.78647,2541.7,2541.6,0.78648]
[1748710057595,2.13247,2541.7,2541.6,0.78648]
[1748710057899,0.78652,2541.6,2541.5,0.78652]
[1748710058102,2.13252,2541.6,2541.5,0.78652]
[1748710058699,2.13252,2541.6,2541.5,3.11755269]
[1748710061800,0.78649,2541.7,2541.6,0.78647]
[1748710062803,2.03389,2541.7,2541.6,0.78647]
[1748710063512,2.03389,2541.7,2541.6,2.34579099]
[1748710063807,2.03389,2541.7,2541.6,1.55929099]
[1748710064305,2.03389,2541.7,2541.6,2.34579099]
[1748710064503,2.03389,2541.7,2541.6,1.55929099]
[1748710066307,0.7865,2541.6,2541.5,1.16964618]
[1748710066502,2.738,2541.6,2541.5,1.16964618]
[1748710066704,7.738,2541.6,2541.5,0.14234618]
[1748710066902,0.78656,2541.4,2541.3,1.18545014]
[1748710067209,7.88436,2541.4,2541.3,1.18545014]
[1748710067509,12.88436,2541.4,2541.3,1.18545014]
[1748710067997,0.7866,2541.3,2541.2,2.33692809]
[1748710068204,0.7866,2541.3,2541.2,0.0059054]
[1748710068404,5.7866,2541.3,2541.2,0.0059054]
[1748710069712,1.96672,2541.1,2540.6,2.33102269]
[1748710069908,0.78678,2540.7,2540.6,2.33102269]
[1748710070302,0.78681,2540.6,2540.5,2.33102269]
[1748710070506,4.67681,2540.6,2540.5,2.33102269]
[1748710072313,0.78681,2540.6,2540.5,2.33102269]
[1748710072813,22.7906654,2540.8,2540.5,2.33102269]
[1748710073014,0.78679,2540.7,2540.5,4.42484269]
[1748710073212,22.0039054,2540.8,2540.5,1.307]
[1748710073407,0.78679,2540.7,2540.5,2.09383]
[1748710073818,22.0039054,2540.8,2540.5,1.307]
[1748710074017,0.7868,2540.7,2540.5,2.09383]
[1748710074616,4.6826654,2540.8,2540.6,0.7868]
[1748710074817,0.0059054,2540.8,2540.7,3.2078]
[1748710075016,0.7926554,2540.8,2540.7,3.2078]
[1748710078920,0.9893554,2540.8,2540.7,3.2078]
[1748710079716,0.78681,2540.6,2540.5,1.307]
[1748710080424,0.78681,2540.6,2540.5,2.09384]
[1748710081427,0.78684,2540.5,2540.4,3.2078]
[1748710081618,2.68814,2540.5,2540.4,3.2078]
[1748710082318,1.9013,2540.5,2540.3,2.33692809]
[1748710082518,0.78687,2540.4,2540.3,2.33692809]
[1748710082719,2.02847,2540.4,2540.3,2.33692809]
[1748710083420,2.02847,2540.4,2540.3,0.0059054]
[1748710083622,20.12347,2540.4,2540.3,0.0059054]
[1748710085127,0.78702,2540.0,2539.8,4.6543454]
[1748710085326,21.30387,2540.4,2539.8,5.9039454]
[1748710085327,0.78703,2539.9,2539.8,5.9039454]
[1748710085923,5.2421,2540.2,2539.8,5.9039454]
[1748710085924,0.78699,2540.1,2539.9,0.78701]
[1748710086125,0.787,2540.1,2540.0,0.787]
[1748710086722,3.891,2540.2,2539.9,1.2496]
[1748710086919,0.787,2540.0,2539.9,1.2496]
[1748710087524,0.78703,2539.9,2539.8,5.53882269]
[1748710087720,2.66113,2539.9,2539.8,5.53882269]
[1748710087920,7.66113,2539.9,2539.8,2.33102269]
[1748710088321,8.33983,2539.9,2539.8,2.33102269]
[1748710089629,7.23183,2539.9,2539.8,2.33102269]
[1748710089830,25.33783,2539.9,2539.8,2.33102269]
[1748710090024,0.78706,2539.8,2539.7,0.0059054]
[1748710090226,2.05746,2539.8,2539.7,0.0059054]
[1748710092529,22.6171,2539.9,2539.7,0.0059054]
[1748710092530,3.892,2539.9,2539.7,0.0059054]
[1748710092732,22.004,2540.2,2539.8,0.78704]
[1748710093034,0.787,2540.0,2539.9,1.2569]
[1748710093226,0.787,2540.0,2539.9,1.8956]
[1748710093828,0.787,2540.0,2539.7,0.0059054]
[1748710093829,0.78706,2539.8,2539.7,0.0059054]
[1748710094228,0.78706,2539.8,2539.7,1.2628054]
[1748710094641,22.019,2540.1,2539.7,1.2628054]
[1748710094642,0.78702,2540.0,2539.7,1.2628054]
[1748710094837,0.78702,2540.0,2539.9,3.2078]
[1748710095038,22.019,2540.1,2539.9,3.2078]
[1748710095236,22.80597,2540.1,2540.0,1.8969]
[1748710095441,22.80597,2540.1,2540.0,2.5683]
[1748710095637,4.67897,2540.1,2540.0,2.5683]
[1748710098941,4.87577,2540.1,2540.0,2.5683]
[1748710099443,4.87577,2540.1,2540.0,0.64]
[1748710099941,4.87577,2540.1,2540.0,0.71155339]
[1748710100136,4.87577,2540.1,2540.0,1.96615339]
[1748710101239,4.87577,2540.1,2540.0,0.71155339]
[1748710104545,4.87577,2540.1,2540.0,1.49855339]
[1748710104843,4.87577,2540.1,2540.0,0.71155339]
[1748710105040,4.87577,2540.1,2540.0,0.07155339]
[1748710108147,22.97677,2540.1,2540.0,0.07155339]
[1748710113249,22.97677,2540.1,2540.0,3.39e-06]
[1748710115048,27.97677,2540.1,2540.0,3.39e-06]
[1748710116551,9.87577,2540.1,2540.0,3.39e-06]
[1748710116756,4.87577,2540.1,2540.0,3.39e-06]
[1748710117050,22.97977,2540.1,2540.0,3.39e-06]
[1748710117459,27.97977,2540.1,2540.0,3.39e-06]
[1748710119262,0.78706,2539.8,2539.7,8.79e-06]
[1748710119559,3.99486,2539.8,2539.7,8.79e-06]
[1748710119958,8.99486,2539.8,2539.7,8.79e-06]
[1748710120155,10.26846,2539.8,2539.7,8.79e-06]
[1748710120553,0.78721,2539.3,2539.2,1.55987796]
[1748710120758,22.78721,2539.3,2539.2,1.55987796]
[1748710121459,24.25461,2539.3,2539.2,1.55987796]
[1748710122357,24.25461,2539.3,2539.0,0.0059054]
[1748710122358,0.78728,2539.1,2539.0,0.0059054]
[1748710122657,0.78728,2539.1,2538.9,1.55987796]
[1748710122658,0.78731,2539.0,2538.9,0.44597336]
[1748710122865,2.68951,2539.0,2538.9,0.44597336]
[1748710124062,20.79351,2539.0,2538.9,0.44597336]
[1748710124259,20.79351,2539.0,2538.9,3.36e-06]
[1748710124460,0.78737,2538.8,2538.7,0.0059054]
[1748710124656,7.88917,2538.8,2538.7,0.0059054]
[1748710124860,7.88917,2538.8,2538.7,5.4e-06]
[1748710125164,9.25317,2538.8,2538.7,5.4e-06]
[1748710129459,9.25317,2538.8,2538.7,0.07155879]
[1748710129859,4.68137,2538.8,2538.7,0.07155879]
[1748710130464,4.68137,2538.8,2538.7,2.65035879]
[1748710134768,4.87827,2538.8,2538.7,2.65035879]
[1748710142670,4.87827,2538.8,2538.7,0.74655879]
[1748710143068,4.87827,2538.8,2538.7,0.07155879]
[1748710143371,6.12127,2538.8,2538.7,0.07155879]
[1748710145871,4.87827,2538.8,2538.7,0.07155879]
[1748710146371,22.98827,2538.8,2538.7,0.07155879]
[1748710149081,22.98827,2538.8,2538.7,1.38735879]
[1748710150467,22.98827,2538.8,2538.7,2.55876349]
[1748710150666,0.1969,2538.8,2538.7,8.34616349]
[1748710150983,0.671,2539.3,2538.7,8.34616349]
[1748710150984,2.3503699,2539.5,2538.8,1.96843]
[1748710151172,2.3503699,2539.5,2539.4,3.2078]
[1748710151680,3.1375199,2539.5,2539.4,3.2078]
[1748710152580,0.7930554,2539.5,2539.4,5.53882269]
[1748710153080,0.0059054,2539.5,2539.4,6.32600269]
[1748710153781,0.0059054,2539.5,2539.4,6.99770269]
[1748710154676,0.0059054,2539.5,2539.4,11.99770269]
[1748710155676,0.0059054,2539.5,2539.4,13.29510269]
[1748710158380,0.0059054,2539.5,2539.4,16.16700269]
[1748710160781,0.0059054,2539.5,2539.4,16.23855608]
[1748710161884,0.0059054,2539.5,2539.4,13.90753339]
[1748710163994,0.0059054,2539.5,2539.4,15.46420744]
[1748710165589,0.0059054,2539.5,2539.4,13.90753339]
[1748710166985,4.68098,2540.1,2540.0,0.787]
[1748710168080,3.894,2540.1,2540.0,0.787]
[1748710169589,3.894,2540.1,2539.9,3.2078]
[1748710169789,3.894,2540.1,2540.0,0.787]
[1748710170192,5.98857,2540.1,2540.0,0.787]
[1748710171091,5.2016,2540.1,2540.0,0.787]
[1748710173292,5.98857,2540.1,2540.0,0.787]
[1748710174197,0.787,2540.0,2539.9,3.99481]
[1748710174495,2.711,2540.0,2539.9,3.99481]
[1748710174894,1.924,2540.0,2539.9,3.99481]
[1748710175397,1.924,2540.0,2539.9,0.78701]
[1748710175595,2.711,2540.0,2539.9,0.78701]
[1748710175790,1.924,2540.0,2539.9,1.95409117]
[1748710175991,2.711,2540.0,2539.9,1.16708117]
[1748710176295,3.3494,2540.0,2539.9,1.16708117]
[1748710177996,0.78703,2539.9,2539.8,1.16708117]
[1748710178197,2.12293,2539.9,2539.8,1.16708117]
[1748710179300,2.12293,2539.9,2539.8,1.95414117]
[1748710179501,1.3359,2539.9,2539.8,2.34373405]
[1748710181904,2.12293,2539.9,2539.8,0.78706]
[1748710182199,0.78709,2539.8,2539.7,0.78709]
[1748710182405,2.10509,2539.8,2539.7,0.78709]
[1748710183002,0.78709,2539.7,2539.6,3.90660326]
[1748710183209,1.318,2539.7,2539.6,3.90660326]
[1748710184002,2.10509,2539.7,2539.6,0.78711]
[1748710184202,1.318,2539.7,2539.6,0.78711]
[1748710187410,1.318,2539.7,2539.6,3.99491]
[1748710188107,5.209,2539.7,2539.6,3.11949326]
[1748710188306,23.307,2539.7,2539.6,3.90661326]
[1748710188604,23.307,2539.7,2539.6,7.11441326]
[1748710188805,1.318,2539.7,2539.6,7.11441326]
[1748710189704,18.88505,2539.9,2539.8,0.78706]
[1748710190006,0.78709,2539.7,2539.6,7.11439326]
[1748710190310,0.78709,2539.7,2539.6,4.06645339]
[1748710191510,2.10888,2539.8,2539.6,4.06645339]
[1748710191704,0.78709,2539.7,2539.6,4.06645339]
[1748710191903,2.14809,2539.7,2539.6,4.06645339]
[1748710192112,1.361,2539.7,2539.6,6.4177664]
[1748710196908,2.14809,2539.7,2539.6,6.4177664]
[1748710197410,2.14809,2539.7,2539.6,6.34621301]
[1748710197815,2.14809,2539.7,2539.6,2.35131301]
[1748710198416,0.78709,2539.7,2539.6,2.4228664]
[1748710198711,0.78709,2539.7,2539.6,3.2099864]
[1748710199109,0.78709,2539.7,2539.6,2.4228664]
[1748710199316,2.09919,2539.7,2539.6,2.4228664]
[1748710199517,18.88406,2539.8,2539.7,0.78709]
[1748710199719,18.097,2539.8,2539.6,5.6306664]
[1748710199921,7.13112,2540.0,2539.6,6.4177664]
[1748710199922,8.42932,2540.0,2539.6,6.4177664]
[1748710200221,0.78708,2539.8,2539.6,5.6306664]
[1748710200517,19.3952,2539.9,2539.6,6.4177664]
[1748710200717,0.78706,2539.8,2539.6,6.4177664]
[1748710200917,0.78706,2539.8,2539.7,0.78709]
[1748710201414,0.78706,2539.8,2539.7,2.35364873]
[1748710201923,0.78706,2539.8,2539.7,1.56655873]
[1748710202515,4.5252,2540.0,2539.7,1.56655873]
[1748710202715,3.891,2540.0,2539.9,0.78703]
[1748710202916,0.6311,2540.2,2539.9,1.96758]
[1748710203222,5.1828054,2540.3,2539.9,1.96758]
[1748710203223,0.0059054,2540.3,2540.2,0.78694]
[1748710204116,0.7928054,2540.3,2540.1,1.2425]
[1748710204317,0.78697,2540.1,2540.0,0.6423054]
[1748710204722,0.78697,2540.1,2540.0,0.0059054]
[1748710204917,0.78709,2539.7,2539.6,4.51001212]
[1748710205123,18.88409,2539.7,2539.6,1.63811212]
[1748710205528,0.78712,2539.6,2539.5,3.2078]
[1748710205731,2.76382,2539.6,2539.5,3.2078]
[1748710207227,2.76382,2539.6,2539.5,4.38254355]
[1748710208125,2.76382,2539.6,2539.5,1.17474355]
[1748710209232,3.39112,2539.6,2539.5,1.17474355]
[1748710209423,21.48712,2539.6,2539.5,1.17474355]
[1748710213027,0.78718,2539.4,2539.3,0.0059054]
[1748710214126,0.78718,2539.4,2539.3,1.18064895]
[1748710215224,0.78718,2539.4,2539.3,0.0059054]
[1748710217932,2.07078,2539.4,2539.3,0.0059054]
[1748710219731,2.07078,2539.4,2539.3,0.07745879]
[1748710221229,18.099,2539.4,2539.3,0.07745879]
[1748710221527,18.099,2539.4,2539.3,2.23435879]
[1748710221937,18.88618,2539.4,2539.3,0.07745879]
[1748710222139,20.12248,2539.4,2539.3,0.07745879]
[1748710222939,20.12248,2539.4,2539.3,1.25220234]
[1748710224536,1.2363,2539.4,2539.3,2.03941234]
[1748710224838,0.011,2539.5,2539.4,0.78718]
[1748710225729,0.011,2539.5,2539.3,0.07745879]
[1748710225730,18.099,2539.6,2539.5,0.78715]
[1748710226237,0.78715,2539.5,2539.4,0.78718]
[1748710226631,0.78714,2539.6,2539.4,0.78718]
[1748710227741,0.78714,2539.6,2539.4,1.96192355]
[1748710228038,0.78715,2539.5,2539.4,1.96192355]
[1748710228227,0.78714,2539.6,2539.4,1.96192355]
[1748710228431,18.88514,2539.6,2539.4,1.17474355]
[1748710228634,4.5647,2539.7,2539.4,1.17474355]
[1748710228836,18.098,2539.6,2539.4,1.17474355]
[1748710229132,0.78715,2539.5,2539.4,1.17474355]
[1748710231532,2.08905,2539.5,2539.4,1.17474355]
[1748710231732,2.10005,2539.5,2539.4,1.17474355]
[1748710232641,2.08905,2539.5,2539.4,1.17474355]
[1748710233241,0.78718,2539.4,2539.3,1.25220234]
[1748710233442,2.05748,2539.4,2539.3,1.25220234]
[1748710234842,2.05748,2539.4,2539.3,1.18064895]
[1748710235441,2.05748,2539.4,2539.3,1.57223013]
[1748710239638,5.26528,2539.4,2539.3,1.57223013]
[1748710239843,5.26528,2539.4,2539.2,2.3494871]
[1748710239844,0.78721,2539.3,2539.2,1.3282871]
[1748710240043,6.60341,2539.3,2539.2,0.4604071]
[1748710240241,11.60341,2539.3,2539.2,0.4604071]
[1748710240635,23.44151,2539.3,2539.2,0.4604071]
[1748710241845,0.78728,2539.1,2539.0,4.5458423]
[1748710246142,1.67449128,4103.3,2539.0,9.5458423]
[1748710246143,9.06461,2539.7,2539.0,9.5458423]
[1748710246447,9.06461,2539.7,2539.1,2.09946]
[1748710246448,0.78723,2539.3,2539.1,2.09946]
[1748710246657,0.78723,2539.3,2539.2,1.3122]
[1748710246848,0.7872,2539.4,2539.2,2.09944]
[1748710247049,0.78718,2539.5,2539.4,0.07155339]
[1748710247244,0.78718,2539.5,2539.4,1.38375339]
[1748710249747,0.78718,2539.5,2539.4,0.07155339]
[1748710250055,0.78718,2539.5,2539.0,3.8858423]
[1748710250056,0.78725,2539.2,2539.1,1.3566]
[1748710250946,0.78728,2539.1,2539.0,6.7577423]
[1748710251146,0.78728,2539.1,2539.0,6.82929569]
[1748710252052,0.78728,2539.1,2539.0,3.62149569]
[1748710253149,0.78728,2539.1,2539.0,4.88909569]
[1748710255661,0.78728,2539.1,2539.0,8.09689569]
[1748710255865,0.78728,2539.1,2539.0,5.22499569]
[1748710256359,0.78728,2539.1,2539.0,3.95739569]
[1748710257862,0.78728,2539.1,2539.0,5.32379569]
[1748710258460,0.78728,2539.1,2539.0,2.11599569]
[1748710258657,0.78728,2539.1,2539.0,5.32379569]
[1748710262065,18.097,2539.2,2539.0,5.32379569]
[1748710262066,3.889,2539.3,2539.0,5.32379569]
[1748710262258,0.78725,2539.3,2539.2,0.78725]
[1748710262564,0.78725,2539.2,2539.1,2.05855]
[1748710262958,0.78725,2539.2,2539.1,7.05855]
[1748710263154,0.78725,2539.2,2539.1,6.2713]
[1748710263366,0.78725,2539.2,2539.1,1.2713]
[1748710263668,0.78725,2539.2,2539.1,4.40394947]
[1748710264858,0.78725,2539.2,2539.1,1.2713]
[1748710265565,0.78725,2539.2,2539.1,1.9021]
[1748710267264,0.78725,2539.2,2539.1,5.1099]
[1748710273375,0.78725,2539.2,2539.1,5.11599757]
[1748710273879,2.3444645,2540.1,2539.1,10.11599757]
[1748710274079,0.787,2540.0,2539.9,3.2078]
[1748710274779,2.0616,2540.0,2539.9,1.5722134]
[1748710274973,2.7127,2540.0,2539.9,1.5722134]
[1748710278075,7.7127,2540.0,2539.9,0.6877934]
[1748710278282,0.78709,2539.7,2539.6,3.4e-06]
[1748710278583,7.88189,2539.7,2539.6,3.4e-06]
[1748710278877,0.78712,2539.6,2539.5,0.3138135]
[1748710279083,2.72822,2539.6,2539.5,3.5e-06]
[1748710279282,7.72822,2539.6,2539.5,3.5e-06]
[1748710280175,8.90899,2539.6,2539.1,0.00609757]
[1748710280481,3.99505,2539.2,2539.1,0.00609757]
[1748710280669,25.97605,2539.2,2539.1,0.00609757]
[1748710284074,7.88305,2539.2,2539.1,0.00609757]
[1748710284276,25.97805,2539.2,2539.1,0.00609757]
[1748710284474,4.67525,2539.2,2539.1,0.00609757]
[1748710285079,6.59075,2539.2,2539.1,0.00609757]
[1748710285780,9.79855,2539.2,2539.1,0.00609757]
[1748710285980,9.79855,2539.2,2539.1,7.57e-06]
[1748710285981,14.79855,2539.2,2539.1,7.57e-06]
[1748710289379,9.79855,2539.2,2539.1,7.57e-06]
[1748710294491,5.91055,2539.2,2539.1,7.57e-06]
[1748710294689,27.89255,2539.2,2539.1,7.57e-06]
[1748710299991,24.68475,2539.2,2539.1,7.57e-06]
[1748710300292,27.89255,2539.2,2539.1,7.57e-06]
[1748710302397,9.79655,2539.2,2539.1,7.57e-06]
[1748710302694,27.89255,2539.2,2539.1,7.57e-06]
[1748710302896,7.88105,2539.2,2539.1,7.57e-06]
[1748710303188,6.2314645,2539.8,2539.1,5.00000757]
[1748710303394,6.2314645,2539.8,2539.4,0.78718]
[1748710303589,0.78714,2539.6,2539.3,3.99499]
[1748710303793,6.2314645,2539.8,2539.4,1.3273]
[1748710303993,0.78714,2539.6,2539.4,2.11448]
[1748710304395,0.78711,2539.7,2539.4,1.3273]
[1748710304595,0.78713,2539.6,2539.4,1.3273]
[1748710304792,0.78715,2539.5,2539.4,1.3273]
[1748710306196,0.98395,2539.5,2539.4,1.3273]
[1748710309999,0.98395,2539.5,2539.3,1.56995498]
[1748710310000,0.78718,2539.4,2539.3,1.56995498]
[1748710312109,0.78721,2539.3,2539.2,1.332]
[1748710313906,0.78725,2539.2,2539.1,1.56996255]
[1748710314208,9.90035,2539.2,2539.1,1.56996255]
[1748710315409,9.90035,2539.2,2539.0,0.0039423]
[1748710315410,0.78728,2539.1,2539.0,0.0039423]
[1748710315611,2.13878,2539.1,2539.0,0.0039423]
[1748710317114,5.34658,2539.1,2539.0,0.0039423]
[1748710318213,2.13878,2539.1,2539.0,0.0039423]
[1748710318412,5.34658,2539.1,2539.0,0.0039423]
[1748710319017,10.34658,2539.1,2539.0,2.3e-06]
[1748710319316,0.78746,2538.5,2538.4,2.35212039]
[1748710319607,22.76646,2538.5,2538.4,2.35212039]
[1748710320914,0.0059054,2538.7,2538.4,2.35212039]
[1748710321106,0.0059054,2538.7,2538.4,5.55992039]
[1748710321107,18.88044,2538.6,2538.4,5.55992039]
[1748710321310,18.88044,2538.6,2538.5,1.2968]
[1748710323916,3.8919054,2538.7,2538.5,1.2968]
[1748710323917,4.6793154,2538.7,2538.5,1.2968]
[1748710324217,18.88145,2538.6,2538.3,0.78752]
[1748710324520,18.88145,2538.6,2538.5,0.6497]
[1748710325216,18.88145,2538.6,2538.5,1.9532]
[1748710328213,0.78746,2538.5,2538.4,0.6548]
[1748710328418,0.78749,2538.4,2538.3,0.6343]
[1748710329624,0.78748,2538.5,2538.3,0.6343]
[1748710329818,0.78748,2538.5,2538.4,1.3537]
[1748710330018,0.78749,2538.4,2538.3,0.6343]